Cogmind - Beta 14 @@@ ROGUE MODE // 2024.10.20 @ 12:03:16 Player: laeb2 Result: Destroyed by P-60 Hacker with Shock Rifle Performance ------------- Evolutions (2) 1000 Regions Visited (4) 800 Robots Destroyed (61) 305 Value Destroyed (2817) 2817 Prototype IDs (0) 0 Alien Tech Used (0) 0 Bonus (1098) 1098 TOTAL SCORE: 6020 Bonus ------- High Alert Combat Kills 360 Follower Combat Kills 56 Entered Garrisons 200 Used RIF Installer 500 Friendly Fire -18 Cogmind --------- Core Integrity 0/550 Matter 114/300 Energy 94/100 System Corruption 4% Temperature Cool (3) Movement Treading (160) Location -8/Garrison Parts ------- > --- POWER (1) -------- (None) > --- PROPULSION (4) --- Light Treads Light Treads Light Treads Improved Medium Treads > --- UTILITY (4) ------ Large Storage Unit Improved Medium Armor Plating Improved Medium Armor Plating System Shield > --- WEAPON (2) ------- KE Penetrator Magnetic Acceleration Cannon > --- INVENTORY (15) --- Improved Heat Sink Improved Weapon Cycler Relay Coupler [Duelist] (27) Relay Coupler [Sentry] (22) Relay Coupler [Specialist] (22) Relay Coupler [Specialist] (21) Relay Coupler [Hunter] (18) Relay Coupler [Heavy] (14) Relay Coupler [Heavy] (13) Relay Coupler [Behemoth] (10) Long-range Tractor Beam Smartbomb Launcher Datajack Peak State ------------ > --- POWER ------------ Light Nuclear Core > --- PROPULSION ------- Improved Medium Treads Aluminum Leg Aluminum Leg Carbon-fiber Leg > --- UTILITY ---------- Large Storage Unit Improved Weapon Cycler Improved Medium Armor Plating System Shield > --- WEAPON ----------- Minigun KE Penetrator > --- INVENTORY -------- Improved Heat Sink Improved Medium Armor Plating Relay Coupler [Cutter] Relay Coupler [Grunt] Relay Coupler [Duelist] Relay Coupler [Sentry] Relay Coupler [Specialist] Relay Coupler [Specialist] Relay Coupler [Hunter] Relay Coupler [Heavy] Relay Coupler [Heavy] Relay Coupler [Behemoth] Smartbomb Launcher Datajack [Rating: 42] Favorites ----------- Power Light Ion Engine Engine Light Ion Engine Power Core Light Nuclear Core Propulsion Light Treads Treads Light Treads Leg Aluminum Leg Wheel Wheel Utility Large Storage Unit Device Structural Scanner Storage Large Storage Unit Processor Armor Integrity Analyzer Hackware System Shield Protection Hardened Medium Armor Plating Weapon Minigun Energy Gun Medium Laser Ballistic Gun Minigun Ballistic Cannon Improved Light Cannon Launcher Subdweller Shrapnel Launcher Special Melee Weapon Datajack Build | -11 -10 -10 -8 -8 ------- Run | Yrd Mat Sub Mat Gar Slots Evolved 4 | . . . 4 . Power . | . . . . . Propulsion 2 | . . . 2 . Utility 2 | . . . 2 . Weapon . | . . . . . Parts Attached 76 | 6 5 8 26 31 Power 6 | 1 . 1 2 2 Engine 4 | 1 . 1 1 1 Core 2 | . . . 1 1 Reactor . | . . . . . Propulsion 25 | 2 2 2 10 9 Treads 13 | . 2 2 4 5 Leg 8 | 2 . . 2 4 Wheel 4 | . . . 4 . Hover . | . . . . . Flight . | . . . . . Utility 15 | 1 2 1 5 6 Device 3 | . 1 . . 2 Storage 2 | 1 1 . . . Processor 2 | . . 1 1 . Hackware 2 | . . . . 2 Protection 6 | . . . 4 2 Artifact . | . . . . . Weapon 30 | 2 1 4 9 14 Energy Gun 2 | 1 . . 1 . Energy Cannon . | . . . . . Ballistic Gun 17 | 1 1 2 6 7 Ballistic Cannon 2 | . . . 1 1 Launcher 7 | . . 2 1 4 Special Weapon . | . . . . . Impact Weapon . | . . . . . Slashing Weapon . | . . . . . Piercing Weapon . | . . . . . Special Melee Weapon 2 | . . . . 2 Unidentified Prototypes . | . . . . . Parts Lost 26 | . . 8 13 5 Power 4 | . . 1 1 2 Propulsion 11 | . . 3 5 3 Utility 2 | . . 1 1 . Weapon 9 | . . 3 6 . Highest Loss Streak 6 | . . 5 6 2 To Critical Strikes . | . . . . . Average Slot Usage (%) 87 | . 94 78 70 98 Engine 6 | . 14 6 2 4 Core 2 | . . . 2 4 Treads 15 | . 12 19 6 20 Leg 8 | . 15 . 5 10 Wheel 3 | . . . 9 4 Device 4 | . 9 2 . 4 Storage 11 | . 14 14 9 9 Processor 7 | . . 7 15 8 Hackware 1 | . . . . 4 Protection 4 | . . . 5 9 Energy Gun 4 | . 14 5 1 . Ballistic Gun 12 | . 13 10 6 16 Launcher 3 | . . 11 4 . Peak Build Rating 42 | 6 8 12 26 42 Average Rating 18 | 4 7 9 17 31 On Entrance 10 | . 6 8 11 25 Naked Turns . | . . . . . Heaviest Build 52 | 11 28 34 48 52 Greatest Support 90 | 20 40 40 40 90 Greatest Overweight (x) 7 | 2 . 1 7 3 Average Overweight (x) . | . . . 1 . Largest Inventory Capacity 15 | 8 15 15 15 15 Average Capacity 13 | 7 10 15 15 15 Most Carried 15 | 6 9 15 15 15 Average Carried 12 | 3 7 12 12 14 Final Capacity 15 | 8 15 15 15 15 Final Carried 15 | 5 9 13 15 14 Class Distribution -------------------- 51% | Mutant 25% | Bothacker-Mutant 23% | Scavenger-Mutant Dominant Class ---------------- Mutant | -10/Materials Mutant | -10/Subcaves Mutant | -8/Materials Bothacker-Mutant | -8/Garrison Resources | -11 -10 -10 -8 -8 ----------- Run | Yrd Mat Sub Mat Gar Matter Collected 2032 | 262 68 210 572 920 Remotely . | . . . . . Salvage Created 1854 | 39 214 159 608 834 Parts 104 | 6 9 7 32 50 Haulers Intercepted 4 | . 2 . 2 . Recyclers Shooed 2 | . . . 2 . Parts Field Recycled . | . . . . . Retrieved Matter . | . . . . . Parts Self-Destructed 4 | . . 4 . . Prevented . | . . . . . Kills | -11 -10 -10 -8 -8 ------- Run | Yrd Mat Sub Mat Gar Combat Hostiles Destroyed 51 | . 2 5 15 29 Guns 20 | . 2 3 5 10 Cannons 7 | . . . 6 1 AOE 24 | . . 2 4 18 Classes Destroyed 12 | 1 3 1 4 3 Worker 3 | . . . 3 . Tunneler 2 | 2 . . . . Hauler 4 | . 2 . 2 . Watcher 1 | . 1 . . . Swarmer 11 | . . . 4 7 Grunt 24 | . 2 . 7 15 Protector 1 | . . . . 1 Sentry 5 | . . . 3 2 Demolisher 1 | . . . . 1 Hunter 1 | . . . 1 . Programmer 3 | . . . . 3 Subdweller 5 | . . 5 . . Best Kill Streak 6 | 2 2 2 5 6 Combat Bots Only 6 | . 1 2 3 6 Max Kills in Single Turn 4 | 1 1 1 4 4 Gunslinging . | . . . . . Exploded 4 | . . 1 2 4 Melee . | . . . . . Uniques/NPCs Destroyed . | . . . . . Combat | -11 -10 -10 -8 -8 -------- Run | Yrd Mat Sub Mat Gar Hostile Shots Fired 356 | . 14 68 149 125 Missed 90 | . 4 20 28 38 Damage Taken 4761 | . 108 1138 1804 1711 Core 783 | . 34 199 410 140 Absorbed by Shields . | . . . . . Core Remaining (%) 53 | 100 . 6 . . Volleys Fired 269 | 2 25 49 89 104 Largest 2 | 2 2 2 2 2 Hottest 86 | 70 70 80 65 86 Shots Fired 390 | 4 48 64 126 148 Gun 334 | 4 48 60 90 132 Cannon 37 | . . . 32 5 Launcher 19 | . . 4 4 11 Special . | . . . . . Kinetic 317 | 2 24 28 118 145 Thermal 64 | 2 24 34 4 . Explosive 9 | . . 2 4 3 Electromagnetic . | . . . . . Robot Hit Streak 17 | 2 6 17 13 9 Robot Miss Streak 4 | . 3 1 4 4 Penetration Max 1 | . . . . 1 Secondary Targets . | . . . . . Shots Hit Robots 257 | 2 27 55 93 80 Core Hits 112 | 3 8 12 37 52 Critical Kills . | . . . . . Critical Parts Destroyed 1 | . . . . 1 Critical Strikes 6 | . 2 1 . 3 Burn 3 | . 2 1 . . Destroy 2 | . . . . 2 Blast 1 | . . . . 1 Melee Attacks 9 | . . . . 9 Impact . | . . . . . Slashing . | . . . . . Piercing . | . . . . . Sneak Attacks 4 | . . . . 4 Combat Hostiles . | . . . . . Follow-up Attacks . | . . . . . Damage Inflicted 6129 | 33 293 880 1823 3100 Guns 3297 | 33 293 636 911 1424 Cannons 706 | . . . 559 147 Explosions 2121 | . . 244 348 1529 Melee . | . . . . . Ramming 5 | . . . 5 . Kinetic 4341 | 9 108 386 1429 2409 Thermal 624 | 24 185 374 41 . Explosive 1159 | . . 120 348 691 Electromagnetic . | . . . . . Impact . | . . . . . Slashing . | . . . . . Piercing . | . . . . . Highest Corruption 4 | . . . 2 4 Average Corruption 2 | . . . 2 2 Corruption Purged . | . . . . . Corruption Blocked . | . . . . . Effects 27 | . . . 8 19 Message Errors 8 | . . . 3 5 Matter Fused 1 | . . . 1 . Heat Flow Errors 9 | . . . 3 6 Energy Discharges 1 | . . . . 1 Data Loss (minor) 2 | . . . 1 1 Data Loss (major) 1 | . . . . 1 Misfires 3 | . . . . 3 Alerts 2 | . . . . 2 Overload Shots . | . . . . . Overflow Damage 27 | . . . 15 12 Projectiles 15 | . . . 15 . Explosions 12 | . . . . 12 Melee . | . . . . . Knockbacks 5 | . . . 5 . Impact . | . . . . . Kinetic 5 | . . . 5 . Secondary . | . . . . . Self-Inflicted Damage 304 | . . . 48 256 Shots 8 | . . . 2 6 Rammed 1 | . . . 1 . Targets Rammed 1 | . . . 1 . Kicked . | . . . . . Crushed . | . . . . . Highest Temperature 331 | 40 234 . 271 331 Average Temperature 64 | 20 81 . 44 67 Received Heat Transfer 1810 | . 60 210 612 928 Effects 2 | . . . . 2 Interference 2 | . . . . 2 Siege Activations . | . . . . . Robots Corrupted . | . . . . . Combat Hostiles . | . . . . . Parts Fried . | . . . . . Impact Corruptions . | . . . . . Robots Melted . | . . . . . Combat Hostiles . | . . . . . Parts Melted 2 | . . 2 . . Heat Transferred 2035 | 74 666 1184 111 . Parts Sabotaged . | . . . . . Parts Stolen . | . . . . . Parts Stripped . | . . . . . Power Chain Reactions . | . . . . . Alert | -11 -10 -10 -8 -8 ------- Run | Yrd Mat Sub Mat Gar Peak Influence 1063 | 10 65 . 265 1063 Initial 112 | . 6 . . 112 Average 307 | 2 33 . 111 579 Maximum Alert Level 3 | . . . 1 3 Low Security (%) 51 | 100 100 . 75 9 Level 1 18 | . . . 24 26 Level 2 9 | . . . . 20 Level 3 20 | . . . . 43 Level 4 . | . . . . . Level 5 . | . . . . . High Security . | . . . . . Max Security . | . . . . . Squads Dispatched 4 | . 2 . 2 . Investigation 1 | . 1 . . . Extermination . | . . . . . Reinforcement 2 | . 1 . 1 . Assault . | . . . . . Garrison 1 | . . . 1 . Intercept . | . . . . . Searches Triggered . | . . . . . Construction Impeded . | . . . . . Haulers Reinforced . | . . . . . Active Scanning Responses . | . . . . . Cargo Convoy Interrupts . | . . . . . Stealth | -11 -10 -10 -8 -8 --------- Run | Yrd Mat Sub Mat Gar Distress Signals 3 | . . . 3 . Communications Jammed . | . . . . . Distress Signals . | . . . . . Times Spotted 76 | . 5 13 23 35 Peak Tracking Total 8 | . 1 5 7 8 Tactical Retreats 4 | . . . 3 1 Traps | -11 -10 -10 -8 -8 ------- Run | Yrd Mat Sub Mat Gar Traps Triggered 2 | . 1 . . 1 Indirectly . | . . . . . Trap Hack Attempts . | . . . . . Triggered . | . . . . . Disarmed . | . . . . . Reprogrammed . | . . . . . Reused . | . . . . . Traps Extracted . | . . . . . Installed . | . . . . . Triggered . | . . . . . Machines | -11 -10 -10 -8 -8 ---------- Run | Yrd Mat Sub Mat Gar Machines Disabled 7 | . . . 1 6 Max in Single Turn 1 | . . . 1 1 Garrison Relay 4 | . . . . 4 Machines Repaired . | . . . . . Machines Dismantled . | . . . . . Machines Sabotaged . | . . . . . Overloaded Fab Kills . | . . . . . Hacking | -11 -10 -10 -8 -8 --------- Run | Yrd Mat Sub Mat Gar Machines Accessed 9 | . 4 . 2 3 Terminals 8 | . 4 . 1 3 Fabricators . | . . . . . Repair Stations . | . . . . . Recycling Units . | . . . . . Scanalyzers . | . . . . . Garrison Access 1 | . . . 1 . Total Hacks 27 | . 16 . 5 6 Successful 15 | . 9 . 3 3 Failed 12 | . 7 . 2 3 Catastrophic 1 | . . . 1 . Database Lockouts . | . . . . . Manual 17 | . 13 . 4 . Terminals 26 | . 16 . 4 6 Fabricators . | . . . . . Repair Stations . | . . . . . Recycling Units . | . . . . . Scanalyzers . | . . . . . Garrison Access 1 | . . . 1 . Terminal Hacks 11 | . 6 . 2 3 Robot Analysis 5 | . 4 . 1 . Open Door 1 | . . . . 1 Emergency Access Points 1 | . . . . 1 Terminal Index 1 | . . . 1 . Alert Level 1 | . 1 . . . Zone Layout 1 | . 1 . . . Patrol Navigation 1 | . . . . 1 Fabricator Hacks . | . . . . . Repair Station Hacks . | . . . . . Recycling Unit Hacks . | . . . . . Scanalyzer . | . . . . . Garrison Access Hacks 1 | . . . 1 . Unlock Access 1 | . . . 1 . Unauthorized Hacks 3 | . 3 . . . Terminals 3 | . 3 . . . Botnet 2 | . 2 . . . Operators 1 | . 1 . . . Fabricators . | . . . . . Repair Stations . | . . . . . Recycling Units . | . . . . . Scanalyzers . | . . . . . Garrison Access . | . . . . . Data Cores Recovered . | . . . . . Used . | . . . . . Hacking Detections 6 | . 3 . 1 2 Full Trace Events . | . . . . . Feedback Events . | . . . . . Feedback Blocked . | . . . . . Robot Schematics Acquired . | . . . . . Robots Built . | . . . . . Authchips . | . . . . . Time . | . . . . . Total Robot Build Rating . | . . . . . Part Schematics Acquired . | . . . . . Parts Built . | . . . . . Authchips . | . . . . . Time . | . . . . . Total Part Build Rating . | . . . . . Parts Repaired . | . . . . . Time . | . . . . . Parts Recycled . | . . . . . Recycled Matter . | . . . . . Retrieved Matter . | . . . . . Retrieved Components . | . . . . . Parts Scanalyzed . | . . . . . Part Schematics Acquired . | . . . . . Parts Damaged . | . . . . . Bothacking | -11 -10 -10 -8 -8 ------------ Run | Yrd Mat Sub Mat Gar Used RIF Installer 1 | . . . . 1 Robots Hacked 2 | . . . . 2 Non-combat . | . . . . . Combat 2 | . . . . 2 Robot Hacks Applied 2 | . . . . 2 overwrite_iff 1 | . . . . 1 formatsys_high 1 | . . . . 1 Relay Couplers Released 17 | . . . . 17 Machine Destruction 17 | . . . . 17 Attached 1 | . . . . 1 Fabnet Peak Effective % . | . . . . . Robots Rewired 3 | . . . . 3 Allies Hacked 1 | . . . . 1 Hacks Repelled . | . . . . . Allies | -11 -10 -10 -8 -8 -------- Run | Yrd Mat Sub Mat Gar Total Allies 5 | . . . . 5 Largest Group 3 | . . . . 3 Highest-Rated Group 84 | . . . . 84 Highest-Rated Ally 39 | . . . . 39 Total Orders . | . . . . . Ally Attacks 22 | . . . . 22 Total Damage 451 | . . . . 451 Kills 1 | . . . . 1 Allies Corrupted 1 | . . . . 1 Allies Melted . | . . . . . Intel | -11 -10 -10 -8 -8 ------- Run | Yrd Mat Sub Mat Gar Robot Analysis Total 5 | . 4 . 1 . Derelict Logs Recovered . | . . . . . Drone Launches . | . . . . . Drone Recoveries . | . . . . . Exploration | -11 -10 -10 -8 -8 ------------- Run | Yrd Mat Sub Mat Gar Turns Passed 4265 | 67 914 775 881 1628 Spaces Moved 1838 | 49 255 308 397 829 Core 23 | 21 . . 2 . Treads 964 | . 37 308 61 558 Legs 523 | 28 218 . 6 271 Wheels 328 | . . . 328 . Hover . | . . . . . Flight . | . . . . . Fastest Speed 50 | 50 120 160 83 120 Average Speed 151 | 92 125 204 140 149 Slowest Speed 400 | 150 160 240 400 330 Overloaded Moves . | . . . . . Propulsion Burnouts . | . . . . . Robots Hopped . | . . . . . Cave-ins Triggered . | . . . . . Exploration Rate (%) 34 | 4 39 16 38 73 Regions Visited 4 Branch Regions 1 Pre-discovered Areas 1 | . . 1 . . Known Exits Taken 1 | . . . 1 . Unknown Exits Taken 3 | 1 1 1 . . Scrap Searched . | . . . . . Spaces Dug . | . . . . . Terrain Destroyed 181 | . . 33 28 120 Melee . | . . . . . Projectile 4 | . . . 1 3 AOE 177 | . . 33 27 117 Terrain Rammed . | . . . . . Walls Destroyed . | . . . . . Machines Disabled . | . . . . . Actions | -11 -10 -10 -8 -8 --------- Run | Yrd Mat Sub Mat Gar Total 2969 | 66 806 389 604 1104 Wait 679 | 1 510 15 64 89 Move 1834 | 48 254 307 396 829 Hop . | . . . . . Pick Up 66 | 9 8 9 23 17 Fast Attach 15 | 2 1 . 3 9 Attach 38 | 4 3 6 20 5 Detach 2 | . . . . 2 Swap 23 | . 1 2 3 17 Drop 33 | . 4 1 5 23 Fire 269 | 2 25 49 89 104 Melee 9 | . . . . 9 Ram 1 | . . . 1 . Kick . | . . . . . Crush . | . . . . . Escape Stasis . | . . . . . Rewire . | . . . . . Trap . | . . . . . Miscellaneous . | . . . . . Route ------- -11/Scrapyard -10/Materials (discovered 2 exits: [*Mat] / [*Sub]) -10/Subcaves -8/Materials (discovered 2 exits: [*Sto] / Gar) -8/Garrison (discovered 2 exits: [*Mat x2]) History --------- Turn | Location | Event 3 | -11/Scrapyard | Discovered new exit (range 15) 68 | -11/Scrapyard | Entered Materials 316 | -10/Materials | Build established: Mutant 508 | -10/Materials | Discovered new exit (range 11) 759 | -10/Materials | Discovered new exit (range 7) 982 | -10/Materials | Entered Subcaves 1067 | -10/Subcaves | Ambushed by Subdwellers from Twisted Machinery 1129 | -10/Subcaves | Ambushed by swarm of Subdwellers 1184 | -10/Subcaves | Shifting Twisted Machinery released Sub. Power Source 1190 | -10/Subcaves | Shifting Twisted Machinery released Sub. Shrapnel Launcher 1196 | -10/Subcaves | Lost 3 allies 1265 | -10/Subcaves | Ambushed by Subdweller buried in earth 1301 | -10/Subcaves | Core integrity fell below 50% 1333 | -10/Subcaves | Core integrity fell below 20% 1339 | -10/Subcaves | Lost 5 parts (2n3w) 1656 | -10/Subcaves | Learned location of Zion (-7) 1656 | -10/Subcaves | Met a Zionite searching for "candidates" 1743 | -10/Subcaves | Discovered new exit (range 5) 1757 | -10/Subcaves | Entered Materials 1757 | -8/Materials | Evolved 4 slots: Propulsion x2, Utility x2 2034 | -8/Materials | Lost 3 parts (1u2w) 2051 | -8/Materials | Discovered new exit (range 4) 2204 | -8/Materials | Lost 3 parts (3n) 2263 | -8/Materials | Core integrity fell below 50% 2301 | -8/Materials | Lost 6 parts (1p2n3w) 2533 | -8/Materials | Build established: Scavenger-Mutant 2558 | -8/Materials | Garrison activated, responded to threat 2632 | -8/Materials | Identified exit to Garrison 2638 | -8/Materials | Entered Garrison 2706 | -8/Garrison | Triggered checkpoint 2759 | -8/Garrison | Garrison Relay disabled 2791 | -8/Garrison | Garrison Relay disabled 2935 | -8/Garrison | Triggered checkpoint 2966 | -8/Garrison | Triggered checkpoint 3106 | -8/Garrison | Discovered new exit (range 8) 3116 | -8/Garrison | Triggered checkpoint 3202 | -8/Garrison | Installed Relay Interface Framework 3220 | -8/Garrison | Garrison Relay disabled 3402 | -8/Garrison | Triggered checkpoint 3412 | -8/Garrison | Core integrity fell below 20% 3468 | -8/Garrison | Discovered new exit (range 15) 3493 | -8/Garrison | Garrison Relay disabled 3525 | -8/Garrison | Build established: Bothacker-Mutant 3848 | -8/Garrison | Spotted B-75 Beast 3880 | -8/Garrison | Allies destroyed B-75 Beast 4091 | -8/Garrison | Triggered checkpoint 4266 | -8/Garrison | Destroyed by P-60 Hacker with Shock Rifle Last Messages --------------- P-60 Hacker destroyed. G-47 Trooper destroyed. Slug penetrates D-53 Grenadier. D-53 Grenadier destroyed. The unstable cave ceiling collapses. System corrupted: FCS attempts to trigger KE Penetrator. System corrupted: KE Penetrator misfires. Slug penetrates Earth. Acquired 1 matter. The unstable cave ceiling collapses. Slug penetrates Wall. Detecting nearby RIF Installer. Acquired Magnetic Acceleration Cannon. P-60 Hacker Gravmag System blasted off. P-60 Hacker destroyed. Acquired 31 matter. Lgt. Nuclear Core destroyed. P-60 Hacker springs to life. Slug penetrates P-60 Hacker. Map ----- +----------------------------------------------------+ | | | | | | | | | | | | | | | ?????????????????????????????????????????????????? | | ?????????????????????????????????????????????????? | | ?????????????????????????????????????????????????? | | ?????????????????????????????????????????????????? | | ?????????????????????????????????????????????????? | | ?????????????????????????????????????????????????? | | ???????????????????####??????????????????????????? | | ??????????????????#""" ?""""?????????????????????? | | ??????????????????#"" ???"?????????????????####? | | ??????????????????#" ^ """"????????????????# ? | | ??????????????????#" ######??????????????#